{"text_format":"1","workbook":"xlsx","n_sheets":6,"sheets":["INICIO","Flujo del Proceso","Creación_Cl.Cste-Sec","Modificacion-Cl.Cste-Sec","Organismo ","Parametros"],"not_rendered":{"charts":0,"images":3,"macros":1,"external_links":1,"defined_names":31,"comments":0,"pivot_tables":0},"unopened":[],"bounds":{"document_bytes":16777216,"sheet_cells":100000,"rows_first":2000,"rows_last":500,"rows_between":2000,"halvings":0,"cell_chars":16384,"cell_head_chars":4096},"cells_cut":0,"cells_raw":0,"read":"whole","date_system":"1900"}

{"sheet":"INICIO","index":0,"n_rows":35,"n_cols":6,"rows_kept":35,"cut":false,"hidden":false,"merged":[[32,5,32,6],[36,0,36,4],[36,5,36,6],[34,0,34,4],[34,5,34,6],[35,0,35,4],[35,5,35,6],[23,2,23,4],[23,5,23,6],[31,0,31,4],[31,5,31,6],[33,0,33,4],[33,5,33,6],[24,2,24,4],[24,5,24,6],[25,2,25,4],[25,5,25,6],[28,0,28,6],[29,0,29,4],[29,5,29,6],[30,0,30,4],[30,5,30,6],[32,0,32,4],[20,2,20,4],[20,5,20,6],[21,2,21,4],[21,5,21,6],[22,2,22,4],[22,5,22,6],[0,1,4,13],[15,0,15,1],[15,2,15,13],[19,2,19,4],[19,5,19,6],[6,0,11,1],[13,0,13,1],[13,2,13,13],[14,0,14,1],[14,2,14,13]]}
[null,"FORMULARIO DE MANTENCIÓN DE CLASES DE COSTE SECUNDARIA"]
[]
[]
[]
[]
[]
["Propósito",null,"Este documento tiene como propósito entregar la información necesaria para la creación o modificación clase de coste secundarias"]
[]
[null,null,"La solicitud de creación o actualización deberá ser individual por el Jefe contable del organismo y encargado de costos."]
[]
[null,null,"La soicitud requiere aprobación del DEA respectivo y Dirfap"]
[]
[]
["Destinatario del Documento",null,"Casilla de correo:  SoporteSAP@uchile.cl\nAsunto:  ORGANISMO + Solicitud de Mantención de Clase de Coste Secundaria"]
["Nombre del Formulario",null,"FOR-DM-CO001B"]
["Versión Activa",null,{"$f":"A21","v":"1.0"}]
[]
["Historial de Edición del Documento"]
[]
["Versión","Fecha","Adiciones/Modificaciones",null,null,"Preparado/Revisado Por"]
["1.0","2022-02-28","Versión inicial",null,null,"Claudia Yañez"]
[]
[]
[]
[]
[]
[]
["Distribución del Documento Final"]
["\nLas siguientes personas estan designadas para recibir la versión final del documento"]
["Nombre y Apellido",null,null,null,null,"Organización/Cargo"]
["Jefes Contables Organismo",null,null,null,null,"Todos"]
["Encargado de Costos del Organismo",null,null,null,null,"Todos"]
["Jefe Contables Dirfap"]
["Encargado de Costos Dirfap"]
["Gestores de demanda",null,null,null,null,"Organismos que posean el rol"]

{"sheet":"Flujo del Proceso","index":1,"n_rows":3,"n_cols":3,"rows_kept":3,"cut":false,"hidden":false,"merged":[]}
[{"$f":"INICIO!C15","v":"FOR-DM-CO001B"}]
["Version",null,"Creación y Modificación de clase de coste secundaria"]
[{"$f":"INICIO!C16","v":"1.0"}]

{"sheet":"Creación_Cl.Cste-Sec","index":2,"n_rows":32,"n_cols":5,"rows_kept":32,"cut":false,"hidden":false,"merged":[[10,1,10,2]]}
[{"$f":"INICIO!C15","v":"FOR-DM-CO001B"}]
["Version"]
[{"$f":"INICIO!C16","v":"1.0"}]
[null,"Formulario de Creación Clase de Coste Secundaria"]
[]
[null,"Organismo",null,"*",{"$f":"IF($C$6=\"\",\"Ingrese el código SAP de su Organismo\",\"\")","v":"Ingrese el código SAP de su Organismo"}]
[null,"Solicitante",null,"*",{"$f":"IF($C$7=\"\",\"Ingrese su Nombre y Apellido\",\"\")","v":"Ingrese su Nombre y Apellido"}]
[null,"E-mail Solicitante",null,"*",{"$f":"IF($C$8=\"\",\"Ingrese su correo electrónico\",\"\")","v":"Ingrese su correo electrónico"}]
[null,"Fecha Solicitud",{"$f":"TODAY()","v":"2022-07-01"},"*"]
[]
[null,"Datos Generales"]
[null,"Sociedad CO ","U000-Universidad de Chile","*",{"$f":"IF($C$12=\"\",\"Campo de llenado automático que identifica una sociedad CO de forma unívoca\",\"\")","v":""}]
[null,"Sociedad  Financiera","U001-Universidad de Chile","*",{"$f":"IF($C$13=\"\",\"Campo de llenado automático que indica la sociedad financiera\",\"\")","v":""}]
[null,"Entidad CP","U001-Universidad de Chile","*",{"$f":"IF($C$14=\"\",\"Campo de llenado automático que indica la Entidad Presupuestaria\",\"\")","v":""}]
[null,"Número de la Cuenta",null,"*",{"$f":"IF($C$15=\"\",\"Indique la número de la cuenta\",\"\")","v":"Indique la número de la cuenta"}]
[null,"Clase de cuenta",null,"*",{"$f":"IF($C$16=\"\",\"Ingrese la clase de cuenta\",\"\")","v":"Ingrese la clase de cuenta"}]
[null,"Grupo de cuentas",null,"*",{"$f":"IF($C$17=\"\",\"Ingrese el grupo de cuenta\",\"\")","v":"Ingrese el grupo de cuenta"}]
[null,"Tipo de cuenta de resultado",null,null,{"$f":"IF($C$18=\"\",\"Si es cuenta de resultado, ingrese tipo\",\"\")","v":"Si es cuenta de resultado, ingrese tipo"}]
[null,"Texto breve",null,"*",{"$f":"IF($C$19=\"\",\"Ingrese la denominación de la cuenta\",\"\")","v":"Ingrese la denominación de la cuenta"}]
[null,"Texto explicativo",null,"*",{"$f":"IF($C$20=\"\",\"Ingrese la descripción detallada de la cuenta\",\"\")","v":"Ingrese la descripción detallada de la cuenta"}]
[null,"Moneda de la cuenta","CLP-Pesos Chileno"]
[null,"Categoría Fiscal",null,"*",{"$f":"IF($C$22=\"\",\"Ingrese la categoría fiscal de la cuenta\",\"\")","v":"Ingrese la categoría fiscal de la cuenta"}]
[null,"Permite contabilización sin IVA?",null,"*",{"$f":"IF($C$23=\"\",\"Indique si la cuenta permite o no contabilización de IVA\",\"\")","v":"Indique si la cuenta permite o no contabilización de IVA"}]
[null,"Número de la Cuenta Alternativo",null,"*",{"$f":"IF($C$24=\"\",\"Indique la número de la cuenta alternativo\",\"\")","v":"Indique la número de la cuenta alternativo"}]
[null,"Tipo de clase de coste","S-Costes secundarios","*",{"$f":"IF($C$25=\"\",\"Indique el tipo de clase de coste\",\"\")","v":""}]
[null,"Grupo de Status Campo",null,"*",{"$f":"IF($C$26=\"\",\"Indique el grupo de status campo\",\"\")","v":"Indique el grupo de status campo"}]
[]
[null,"Valido de  ",{"$f":"TODAY()","v":"2022-07-01"},"*",{"$f":"IF($C$28=\"\",\"Ingrese la fecha de inicio de validez del Fondo\",\"\")","v":""}]
[null,"Valido a ",null,"*",{"$f":"IF($C$29=\"\",\"Ingrese la fecha de fin de validez \",\"\")","v":"Ingrese la fecha de fin de validez "}]
[]
[]
[null,"Motivo de la creación"]

{"sheet":"Modificacion-Cl.Cste-Sec","index":3,"n_rows":33,"n_cols":5,"rows_kept":33,"cut":false,"hidden":false,"merged":[[11,1,11,2]]}
[{"$f":"INICIO!C15","v":"FOR-DM-CO001B"}]
["Version"]
[{"$f":"INICIO!C16","v":"1.0"}]
[null,"Formulario de Modificación Clase de Coste Secundaria"]
[null,"Completar sólo los datos a modificar"]
[]
[null,"Organismo",null,"*",{"$f":"IF($C$7=\"\",\"Ingrese el código SAP de su Organismo\",\"\")","v":"Ingrese el código SAP de su Organismo"}]
[null,"Solicitante",null,"*",{"$f":"IF($C$8=\"\",\"Ingrese su Nombre y Apellido\",\"\")","v":"Ingrese su Nombre y Apellido"}]
[null,"E-mail Solicitante",null,"*",{"$f":"IF($C$9=\"\",\"Ingrese su correo electrónico\",\"\")","v":"Ingrese su correo electrónico"}]
[null,"Fecha Solicitud",{"$f":"TODAY()","v":"2022-07-01"},"*"]
[]
[null,"Datos Generales"]
[null,"Sociedad CO ","U000-Universidad de Chile","*",{"$f":"IF($C$13=\"\",\"Campo de llenado automático que identifica una sociedad CO de forma unívoca\",\"\")","v":""}]
[null,"Sociedad  Financiera","U001-Universidad de Chile","*",{"$f":"IF($C$14=\"\",\"Campo de llenado automático que indica la sociedad financiera\",\"\")","v":""}]
[null,"Entidad CP","U001-Universidad de Chile","*",{"$f":"IF($C$15=\"\",\"Campo de llenado automático que indica la Entidad Presupuestaria\",\"\")","v":""}]
[null,"Número de la Cuenta",null,"*",{"$f":"IF($C$16=\"\",\"Indique la número de la cuenta\",\"\")","v":"Indique la número de la cuenta"}]
[null,"Clase de cuenta",null,"*",{"$f":"IF($C$17=\"\",\"Ingrese la clase de cuenta\",\"\")","v":"Ingrese la clase de cuenta"}]
[null,"Grupo de cuentas",null,"*",{"$f":"IF($C$18=\"\",\"Ingrese el grupo de cuenta\",\"\")","v":"Ingrese el grupo de cuenta"}]
[null,"Tipo de cuenta de resultado",null,null,{"$f":"IF($C$19=\"\",\"Si es cuenta de resultado, ingrese tipo\",\"\")","v":"Si es cuenta de resultado, ingrese tipo"}]
[null,"Texto breve",null,"*",{"$f":"IF($C$20=\"\",\"Ingrese la denominación de la cuenta\",\"\")","v":"Ingrese la denominación de la cuenta"}]
[null,"Texto explicativo",null,"*",{"$f":"IF($C$21=\"\",\"Ingrese la descripción detallada de la cuenta\",\"\")","v":"Ingrese la descripción detallada de la cuenta"}]
[null,"Moneda de la cuenta","CLP-Pesos Chileno"]
[null,"Categoría Fiscal",null,"*",{"$f":"IF($C$23=\"\",\"Ingrese la categoría fiscal de la cuenta\",\"\")","v":"Ingrese la categoría fiscal de la cuenta"}]
[null,"Permite contabilización sin IVA?",null,"*",{"$f":"IF($C$24=\"\",\"Indique si la cuenta permite o no contabilización de IVA\",\"\")","v":"Indique si la cuenta permite o no contabilización de IVA"}]
[null,"Número de la Cuenta Alternativo",null,"*",{"$f":"IF($C$25=\"\",\"Indique la número de la cuenta alternativo\",\"\")","v":"Indique la número de la cuenta alternativo"}]
[null,"Tipo de clase de coste","S-Costes secundarios","*",{"$f":"IF($C$26=\"\",\"Indique el tipo de clase de coste\",\"\")","v":""}]
[null,"Grupo de Status Campo",null,"*",{"$f":"IF($C$27=\"\",\"Indique el grupo de status campo\",\"\")","v":"Indique el grupo de status campo"}]
[]
[null,"Valido de  ",{"$f":"TODAY()","v":"2022-07-01"},"*",{"$f":"IF($C$29=\"\",\"Ingrese la fecha de inicio de validez del Fondo\",\"\")","v":""}]
[null,"Valido a ",null,"*",{"$f":"IF($C$30=\"\",\"Ingrese la fecha de fin de validez \",\"\")","v":"Ingrese la fecha de fin de validez "}]
[]
[]
[null,"Motivo de la modificación"]

{"sheet":"Organismo ","index":4,"n_rows":67,"n_cols":3,"rows_kept":67,"cut":false,"hidden":false,"merged":[]}
["Segmento","Nombre 2","Organismo"]
["A101","Facultad de Arquitectura y Urbanismo",{"$f":"CONCATENATE(A2,\"-\",B2)","v":"A101-Facultad de Arquitectura y Urbanismo"}]
["A201","Facultad de Artes",{"$f":"CONCATENATE(A3,\"-\",B3)","v":"A201-Facultad de Artes"}]
["A301","Facultad de Ciencias","A301-Facultad de Ciencias"]
["A401","Facultad de Ciencias Agronómicas","A401-Facultad de Ciencias Agronómicas"]
["A501","Facultad de Economía y Negocio","A501-Facultad de Economía y Negocio"]
["A601","Facultad de Ciencias Físicas y Matemáticas","A601-Facultad de Ciencias Físicas y Matemáticas"]
["A701","Facultad de Ciencias Forestales","A701-Facultad de Ciencias Forestales"]
["A801","Facultad de Ciencias Químicas","A801-Facultad de Ciencias Químicas"]
["A901","Facultad de Ciencias Sociales","A901-Facultad de Ciencias Sociales"]
["AB01","Facultad de Ciencias Veterinaria","AB01-Facultad de Ciencias Veterinaria"]
["AC01","Facultad de Derecho","AC01-Facultad de Derecho"]
["AD01","Facultad de Filosofía y Humanidades","AD01-Facultad de Filosofía y Humanidades"]
["AF01","Facultad de Medicina","AF01-Facultad de Medicina"]
["AG01","Facultad de Odontología","AG01-Facultad de Odontología"]
["AH01","Instituto de Nutrición y Tecnología","AH01-Instituto de Nutrición y Tecnología"]
["AJ01","Instituto de Estudios Internacionales","AJ01-Instituto de Estudios Internacionales"]
["AK01","Instituto de Asuntos Públicos","AK01-Instituto de Asuntos Públicos"]
["AL01","Instituto de la Comunicación e Imagen","AL01-Instituto de la Comunicación e Imagen"]
["AM01","Instituto de Estudios Avanzado","AM01-Instituto de Estudios Avanzado"]
["AN01","Programa Académico de Bachilleto","AN01-Programa Académico de Bachilleto"]
["AP01","Liceo Manuel de Salas","AP01-Liceo Manuel de Salas"]
["AQ01","Programa Transversal de Educación","AQ01-Programa Transversal de Educación"]
["C101","Rectoría","C101-Rectoría"]
["C201","Prorrectoría","C201-Prorrectoría"]
["C301","Vicerrectoría de Asuntos Académicos","C301-Vicerrectoría de Asuntos Académicos"]
["C401","Vicerrectoría de Asuntos Económicos y Gestión Institucional","C401-Vicerrectoría de Asuntos Económicos y Gestión Institucional"]
["C501","Vicerrectoría de Investigación","C501-Vicerrectoría de Investigación"]
["C601","Vicerrectoría de Extensión y Comunicaciones","C601-Vicerrectoría de Extensión y Comunicaciones"]
["C701","Vicerrectoría de Asuntos Estudiantiles y Comunitar","C701-Vicerrectoría de Asuntos Estudiantiles y Comunitar"]
["C801","Vicerrectoría de Tecnologías de la Información","C801-Vicerrectoría de Tecnologías de la Información"]
["E101","Centro de Extensión Artística y Cultural Domingo S","E101-Centro de Extensión Artística y Cultural Domingo S"]
["F101","Departamento de Evaluación, Medición y Registro Ed","F101-Departamento de Evaluación, Medición y Registro Ed"]
["F201","Campus Juan Gómez Millas","F201-Campus Juan Gómez Millas"]
["G101","Fondo General Tesorería","G101-Fondo General Tesorería"]
["G201","Fondo General VAEGI","G201-Fondo General VAEGI"]
["H101","Hospital J.J. Aguirre","H101-Hospital J.J. Aguirre"]
["P101","Convenios de Desempeño ( VAEGI)","P101-Convenios de Desempeño ( VAEGI)"]
["P201","Convenio de Desempeño Iniciativa Bicentenaria C.J.","P201-Convenio de Desempeño Iniciativa Bicentenaria C.J."]
["P301","MECESUP","P301-MECESUP"]
["P401","Parque Científico Tecnológico Valle Lo Aguirre","P401-Parque Científico Tecnológico Valle Lo Aguirre"]
["C501","Vicerrectoría","C501-Vicerrectoría"]
["C601","Extensión y Comunicaciones","C601-Extensión y Comunicaciones"]
["C701","Vicerrectoría","C701-Vicerrectoría"]
["C702","VAEC Fed. De Estudiantes","C702-VAEC Fed. De Estudiantes"]
["C702","VAEC SEMDA CENTRAL","C702-VAEC SEMDA CENTRAL"]
["C702","VAEC SEMDA CJGM","C702-VAEC SEMDA CJGM"]
["C702","VAEC SEMDA FCFM","C702-VAEC SEMDA FCFM"]
["C702","VAEC SEMDA CAMPUS SUR","C702-VAEC SEMDA CAMPUS SUR"]
["C702","VAEC Residencia Mario Ojeda","C702-VAEC Residencia Mario Ojeda"]
["C702","VAEC Residencia Paulina Starr","C702-VAEC Residencia Paulina Starr"]
["C702","VAEC Residencia JGM","C702-VAEC Residencia JGM"]
["C702","VAEC Complejo Tenístico","C702-VAEC Complejo Tenístico"]
["C702","VAEC Piscina (Deporte Azul)","C702-VAEC Piscina (Deporte Azul)"]
["C702","VAEC Campo Deportivo JGM","C702-VAEC Campo Deportivo JGM"]
["C702","VAEC Refugio Farellones","C702-VAEC Refugio Farellones"]
["C801","VTI","C801-VTI"]
["E101","CEAC - Teatro","E101-CEAC - Teatro"]
["E101","CEAC","E101-CEAC"]
["F101","DEMRE","F101-DEMRE"]
["F201","Campus Juan Gómez M.","F201-Campus Juan Gómez M."]
["G101","Fondo General Tesorería","G101-Fondo General Tesorería"]
["G201","Fdo Gral VAEGI","G201-Fdo Gral VAEGI"]
["P101","Convenios Desempeño","P101-Convenios Desempeño"]
["P201","C Desempeño IBCJGM","P201-C Desempeño IBCJGM"]
["P301","MECESUP","P301-MECESUP"]
["P401","PCT Valle Lo Aguirre",{"$f":"CONCATENATE(A67,\"-\",B67)","v":"P401-PCT Valle Lo Aguirre"}]

{"sheet":"Parametros","index":5,"n_rows":192,"n_cols":28,"rows_kept":192,"cut":false,"hidden":true,"merged":[]}
["MONEDAS",null,null,null,"Flag",null,"Clases",null,null,null,"Clase de cuenta",null,null,"Si_NO",null,null,null,"Tipo Clase Cste",null,null,null,"Grupo de Status Campo",null,null,null,"Operación presupuestaria"]
["Moneda","Glosa","Moneda",null,"X",null,"E","Desarrollo",{"$f":"CONCATENATE(G2,\"-\",H2)","v":"E-Desarrollo"},null,"X-Cuenta de Balance",null,null,"Si",null,null,null,1,"Costes primarios/ingresos que reducen los costes",{"$f":"CONCATENATE(R2,\"-\",S2)","v":"1-Costes primarios/ingresos que reducen los costes"},null,"CH67","Cuentas asociadas c/referencia contrato",{"$f":"CONCATENATE(V2,\"-\",W2)","v":"CH67-Cuentas asociadas c/referencia contrato"},null,30,"Contabilizar ingreso, gasto, inversión, existencias, ...",{"$f":"CONCATENATE(Z2,\"-\",AA2)","v":"30-Contabilizar ingreso, gasto, inversión, existencias, ..."}]
["AED","Dirham Emiratos Árabes Unidos",{"$f":"CONCATENATE(A3,\"-\",B3)","v":"AED-Dirham Emiratos Árabes Unidos"},null,null,null,"F","Fabricación",{"$f":"CONCATENATE(G3,\"-\",H3)","v":"F-Fabricación"},null,"N-Gastos o Ingresos no Empresariales",null,null,"No",null,null,null,3,"Delimitación por recargo",{"$f":"CONCATENATE(R3,\"-\",S3)","v":"3-Delimitación por recargo"},null,"G001","Generales (con texto, asignación)",{"$f":"CONCATENATE(V3,\"-\",W3)","v":"G001-Generales (con texto, asignación)"},null,40,"Contabilizar entrada, salida de mercancías",{"$f":"CONCATENATE(Z3,\"-\",AA3)","v":"40-Contabilizar entrada, salida de mercancías"}]
["AFA","Afgani (ant.)",{"$f":"CONCATENATE(A4,\"-\",B4)","v":"AFA-Afgani (ant.)"},null,null,null,"G","Logística","G-Logística",null,"P-Costes primarios o ingresos",null,null,null,null,null,null,4,"Delimitación por teórico = real","4-Delimitación por teórico = real",null,"G003","Ctas. consumo de materiales","G003-Ctas. consumo de materiales",null,50,"Compensación","50-Compensación"]
["AFN","Afgani","AFN-Afgani",null,null,null,"H","CeCo auxiliar","H-CeCo auxiliar",null,"C-Cuenta Monetaria",null,"S-Costes secundarios",null,null,null,null,11,"Ingresos","11-Ingresos",null,"G004","Cuentas de costes","G004-Cuentas de costes",null,60,"Contabilizar créditos y deudas por entregas y servicios","60-Contabilizar créditos y deudas por entregas y servicios"]
["ALL","Lek albano","ALL-Lek albano",null,null,null,"L","Dirección","L-Dirección",null,null,null,null,null,null,null,null,12,"Reducción de ingresos","12-Reducción de ingresos",null,"G005","Cuentas bancarias (fecha valor oblig.)","G005-Cuentas bancarias (fecha valor oblig.)",null,70,"Contabilizar compensación de deudores","70-Contabilizar compensación de deudores"]
["AMD","Dram armenio","AMD-Dram armenio",null,null,null,"M","Material","M-Material",null,null,null,null,null,null,null,null,22,"Liquidación externa","22-Liquidación externa",null,"G006","Cuentas de material","G006-Cuentas de material",null,80,"Contabilizar compensación bancaria, efectos","80-Contabilizar compensación bancaria, efectos"]
["ANG","Florines antillanos","ANG-Florines antillanos",null,null,null,"S","Social","S-Social",null,null,null,null,null,null,null,null,null,null,null,null,"G007","Cuentas act.fijo (sin amortiz.acumulada)","G007-Cuentas act.fijo (sin amortiz.acumulada)",null,90,"Contabilizar fondos de pago","90-Contabilizar fondos de pago"]
["AOA","Kwanza angoleño","AOA-Kwanza angoleño",null,null,null,"V","Comercial","V-Comercial",null,null,null,null,null,null,null,null,null,null,null,null,"G008","Ctas.compensación inmovilizado","G008-Ctas.compensación inmovilizado"]
["AON","Nuevo kwanza angoleño (ant.)","AON-Nuevo kwanza angoleño (ant.)",null,null,null,"W","Administración","W-Administración",null,null,null,null,null,null,null,null,"Categoria Fiscal",null,null,null,"G009","Cuentas bancarias (fecha vencim. oblig.)","G009-Cuentas bancarias (fecha vencim. oblig.)"]
["AOR","Kwanza angoleño reajustado (ant.)","AOR-Kwanza angoleño reajustado (ant.)",null,null,null,null,null,null,null,"Plan de cuentas","GrCt","Significado","Grupo de cuentas",null,"Cta Beneficio",null,"-","Sólo se permite IVA soportado",{"$f":"CONCATENATE(\"' \",R11,\" '  \",S11)","v":"' - '  Sólo se permite IVA soportado"},null,"G011","Ctas.compensación (con per. liquid.)","G011-Ctas.compensación (con per. liquid.)",null,"Tipo de pospre"]
["ARS","Peso argentino","ARS-Peso argentino",null,null,null,null,null,null,null,"UCHI","ACCO","Activos Corrientes",{"$f":"CONCATENATE(L12,\"-\",M12)","v":"ACCO-Activos Corrientes"},null,"Resultado Acumulado",null,"*","Se permiten todas las clases de impuestos",{"$f":"CONCATENATE(\"' \",R12,\" '  \",S12)","v":"' * '  Se permiten todas las clases de impuestos"},null,"G012","Compensación ctas. cobrar/ctas. pagar","G012-Compensación ctas. cobrar/ctas. pagar",null,1,"Stock",{"$f":"CONCATENATE(Z12,\"-\",AA12)","v":"1-Stock"}]
["AUD","Dólar australiano","AUD-Dólar australiano",null,null,null,null,null,null,null,"UCHI","ACNC","Activos No Corrientes",{"$f":"CONCATENATE(L13,\"-\",M13)","v":"ACNC-Activos No Corrientes"},null,"Remanente",null,"+","Sólo se permite IVA repercutido","' + '  Sólo se permite IVA repercutido",null,"G013","Generales (texto obligatorio)","G013-Generales (texto obligatorio)",null,2,"Ingresos",{"$f":"CONCATENATE(Z13,\"-\",AA13)","v":"2-Ingresos"}]
["AWG","Florín arubeño","AWG-Florín arubeño",null,null,null,null,null,null,null,"UCHI","CFIN","Gastos Financieros","CFIN-Gastos Financieros",null,null,null,"-B","IVA soportado: Anticipos gestionados bruto","' -B '  IVA soportado: Anticipos gestionados bruto",null,"G014","Cuentas de diferencias MM","G014-Cuentas de diferencias MM",null,3,"Gastos","3-Gastos"]
["AZN","Manat azerbaiyano","AZN-Manat azerbaiyano",null,null,null,null,null,null,null,"UCHI","CMON","Corrección Monetaria","CMON-Corrección Monetaria",null,null,null,"+B","IVA repercutido: Anticipos gestionados bruto","' +B '  IVA repercutido: Anticipos gestionados bruto",null,"G017","Provis./compens. fletes/aduana (MM)","G017-Provis./compens. fletes/aduana (MM)",null,4,"Saldos","4-Saldos"]
["BAM","Marco convertible Bosnia-Herzegovina","BAM-Marco convertible Bosnia-Herzegovina",null,null,null,null,null,null,null,"UCHI","DIFC","Diferencias de Tipo Cambio","DIFC-Diferencias de Tipo Cambio",null,null,null,"<","Cuenta de IVA soportado","' < '  Cuenta de IVA soportado",null,"G018","Desguace (MM)","G018-Desguace (MM)",null,5,"Lista clarificación","5-Lista clarificación"]
["BBD","Dólar Barbados","BBD-Dólar Barbados",null,null,null,null,null,null,null,"UCHI","DIFI","Diferencias de Tipo Cambio","DIFI-Diferencias de Tipo Cambio",null,null,null,">","IVA repercutido","' > '  IVA repercutido",null,"G019","Otras ctas. a cobrar/ctas. a pagar","G019-Otras ctas. a cobrar/ctas. a pagar"]
["BDT","Taka Bangladesh","BDT-Taka Bangladesh",null,null,null,null,null,null,null,"UCHI","GTOS","Costos y Gastos Adminsitración","GTOS-Costos y Gastos Adminsitración",null,null,null,"C0","Exento pago imptos.(0% tp.impositivo)","' C0 '  Exento pago imptos.(0% tp.impositivo)",null,"G023","Ctas. de mantenimiento","G023-Ctas. de mantenimiento"]
["BGN","Lev búlgaro","BGN-Lev búlgaro",null,null,null,null,null,null,null,"UCHI","INAO","Ingresos de actividades ordina","INAO-Ingresos de actividades ordina",null,null,null,"C1","19% IVA Compras afectas","' C1 '  19% IVA Compras afectas",null,"G025","Ctas. de diferencias de inventario","G025-Ctas. de diferencias de inventario"]
["BHD","Dinar Bahrein","BHD-Dinar Bahrein",null,null,null,null,null,null,null,"UCHI","INFI","Ingresos Financieros","INFI-Ingresos Financieros",null,null,null,"C2","19% IVA Activos Fijos afectas","' C2 '  19% IVA Activos Fijos afectas",null,"G026","Cuentas para anticipos efectuados","G026-Cuentas para anticipos efectuados"]
["BIF","Franco burundés","BIF-Franco burundés",null,null,null,null,null,null,null,"UCHI","MIGR","Cuentas de Migración","MIGR-Cuentas de Migración",null,null,null,"C3","19% IVA Proyectos afectas","' C3 '  19% IVA Proyectos afectas",null,"G029","Cuentas de ingresos","G029-Cuentas de ingresos"]
["BMD","Dólar Bermudas","BMD-Dólar Bermudas",null,null,null,null,null,null,null,"UCHI","OCTO","Otros Costos y Gastos","OCTO-Otros Costos y Gastos",null,null,null,"C4","19% IVA Factura de compra a 3eros.","' C4 '  19% IVA Factura de compra a 3eros.",null,"G030","Cuentas de variación de existencias","G030-Cuentas de variación de existencias"]
["BND","Dólar Brunei","BND-Dólar Brunei",null,null,null,null,null,null,null,"UCHI","OING","Otros Ingresos","OING-Otros Ingresos",null,null,null,"C5","19% IVA Compra Supermercados","' C5 '  19% IVA Compra Supermercados",null,"G031","Cuentas para anticipos recibidos","G031-Cuentas para anticipos recibidos"]
["BOB","Boliviano","BOB-Boliviano",null,null,null,null,null,null,null,"UCHI","ORDE","Cuentas de Orden","ORDE-Cuentas de Orden",null,null,null,"C6","19% IVA Importaciones sin derecho a CF","' C6 '  19% IVA Importaciones sin derecho a CF",null,"G032","Ctas. bancarias (fecha valor, venc.obl)","G032-Ctas. bancarias (fecha valor, venc.obl)"]
["BRL","Real brasileño","BRL-Real brasileño",null,null,null,null,null,null,null,"UCHI","PACO","Pasivos Corrientes","PACO-Pasivos Corrientes",null,null,null,"C7","19% IVA Importaciones con derecho a CF","' C7 '  19% IVA Importaciones con derecho a CF",null,"G033","Ctas.coste para subcontrataciones","G033-Ctas.coste para subcontrataciones"]
["BSD","Dólar Bahamas","BSD-Dólar Bahamas",null,null,null,null,null,null,null,"UCHI","PANC","Pasivos No Corrientes","PANC-Pasivos No Corrientes",null,null,null,"C8","19% IVA Importaciones Activo Fijo","' C8 '  19% IVA Importaciones Activo Fijo",null,"G036","Cuentas de ingresos (con centro benef.)","G036-Cuentas de ingresos (con centro benef.)"]
["BTN","Ngultrum del Buthan","BTN-Ngultrum del Buthan",null,null,null,null,null,null,null,"UCHI","PATR","Patrimonio","PATR-Patrimonio",null,null,null,"C9","0% Otros impuestos no utilizables","' C9 '  0% Otros impuestos no utilizables",null,"G039","Ctas. para anticipos sobre inmov.","G039-Ctas. para anticipos sobre inmov."]
["BWP","Pula botswanesa","BWP-Pula botswanesa",null,null,null,null,null,null,null,"UCHI","REUR","Resultado unidades reajustable","REUR-Resultado unidades reajustable",null,null,null,"CA","0% IVA anticipado Carne","' CA '  0% IVA anticipado Carne",null,"G040","Ctas. compensación de personal","G040-Ctas. compensación de personal"]
["BYB","Rublo bielorruso (ant.)","BYB-Rublo bielorruso (ant.)",null,null,null,null,null,null,null,"UCHI","RIMP","Resultado Inversión","RIMP-Resultado Inversión",null,null,null,"CB","0% IVA anticipado Harina","' CB '  0% IVA anticipado Harina",null,"G041","Ctas. compensación Hacienda","G041-Ctas. compensación Hacienda"]
["BYN","Rublo bielorruso nuevo","BYN-Rublo bielorruso nuevo",null,null,null,null,null,null,null,"UCHI","SECU","Costos y Gastos Secundarios","SECU-Costos y Gastos Secundarios",null,null,null,"D0","Exento pago imptos.(0% tp.impositivo)","' D0 '  Exento pago imptos.(0% tp.impositivo)",null,"G045","Ctas. compensación EM/RF","G045-Ctas. compensación EM/RF"]
["BYR","Rublo bielorruso","BYR-Rublo bielorruso",null,null,null,null,null,null,null,null,null,null,null,null,null,null,"D1","Exentas - No Giro","' D1 '  Exentas - No Giro",null,"G049","Ctas. de costes de producción","G049-Ctas. de costes de producción"]
["BZD","Dólar Belice","BZD-Dólar Belice",null,null,null,null,null,null,null,null,null,null,null,null,null,null,"D2","19% IVA  Afectas Giro","' D2 '  19% IVA  Afectas Giro",null,"G050","Ctas. compensación comisiones clientes","G050-Ctas. compensación comisiones clientes"]
["CAD","Dólar canadiense","CAD-Dólar canadiense",null,null,null,null,null,null,null,null,null,null,null,null,null,null,"D3","19% IVA  Afectas No Giro","' D3 '  19% IVA  Afectas No Giro",null,"G052","Cta. para bajas de inmovilizado","G052-Cta. para bajas de inmovilizado"]
["CDF","Franco CFA","CDF-Franco CFA",null,null,null,null,null,null,null,null,null,null,null,null,null,null,"D4","IVA 19 + IABA 31,5 ( Alcoholes)","' D4 '  IVA 19 + IABA 31,5 ( Alcoholes)",null,"G056","Cuentas de amortizaciones","G056-Cuentas de amortizaciones"]
["CFP","Franco francés (islas del Pacífico)","CFP-Franco francés (islas del Pacífico)",null,null,null,null,null,null,null,null,null,null,null,null,null,null,"D5","IVA 19 + IABA 20,5 (vinos y cervezas)","' D5 '  IVA 19 + IABA 20,5 (vinos y cervezas)",null,"G059","Cuentas de exist. - contab. material","G059-Cuentas de exist. - contab. material"]
["CHF","Franco suizo","CHF-Franco suizo",null,null,null,null,null,null,null,null,null,null,null,null,null,null,"D6","8,0% IDF retenido parcial","' D6 '  8,0% IDF retenido parcial",null,"G062","Cuentas de subvenciones","G062-Cuentas de subvenciones"]
["CLP","Pesos chilenos","CLP-Pesos chilenos",null,null,null,null,null,null,null,null,null,null,null,null,null,null,"D7","19,0% IDF retenido Total","' D7 '  19,0% IDF retenido Total",null,"G064","Otras cuentas de costes (texto oblig.)","G064-Otras cuentas de costes (texto oblig.)"]
["CLP4",null,"CLP4-",null,null,null,null,null,null,null,null,null,null,null,null,null,null,"D8","19,0% IVA retenido","' D8 '  19,0% IVA retenido",null,"G067","Cuentas asociadas","G067-Cuentas asociadas"]
["CNY","Yuan de la R.P.China","CNY-Yuan de la R.P.China",null,null,null,null,null,null,null,null,null,null,null,null,null,null,"D9","0% Exportaciones","' D9 '  0% Exportaciones",null,"G068","Cuentas asociadas (a pagar - Austria)","G068-Cuentas asociadas (a pagar - Austria)"]
["COP","Peso colombiano","COP-Peso colombiano",null,null,null,null,null,null,null,null,null,null,null,null,null,null,"DA","IVA 19 + IABA 18 (Bebidas Azucaradas)","' DA '  IVA 19 + IABA 18 (Bebidas Azucaradas)",null,"G069","Ctas. de costes (gastos desplazamiento)","G069-Ctas. de costes (gastos desplazamiento)"]
["CRC","Colón costarricense","CRC-Colón costarricense",null,null,null,null,null,null,null,null,null,null,null,null,null,null,"DB","IVA 19 + IABA 10 (bebidas)","' DB '  IVA 19 + IABA 10 (bebidas)",null,"G070","Ctas. de compensación (gastos de despl.)","G070-Ctas. de compensación (gastos de despl.)"]
["CSD","Dinar serbio (antiguo)","CSD-Dinar serbio (antiguo)",null,null,null,null,null,null,null,null,null,null,null,null,null,null,"DX","Impuesto de efectos 0,5 fijo","' DX '  Impuesto de efectos 0,5 fijo",null,"G071","Cuentas asociadas (KIDNO/pago extranj.)","G071-Cuentas asociadas (KIDNO/pago extranj.)"]
["CUC","Peso convertible","CUC-Peso convertible",null,null,null,null,null,null,null,null,null,null,null,null,null,null,null,null,null,null,"ICCF","Contab. reconc. CO <-> FI","ICCF-Contab. reconc. CO <-> FI"]
["CUP","Peso cubano","CUP-Peso cubano",null,null,null,null,null,null,null,null,null,null,null,null,null,null,null,null,null,null,"SECC",null,"SECC-"]
["CVE","Escudo Cabo Verde","CVE-Escudo Cabo Verde",null,null,null,null,null,null,null,null,null,null,null,null,null,null,null,null,null,null,"Z076","Cuentas asociadas - detalle de Pago","Z076-Cuentas asociadas - detalle de Pago"]
["CZK","Corona checa","CZK-Corona checa"]
["DJF","Franco Yibuti","DJF-Franco Yibuti"]
["DKK","Corona danesa","DKK-Corona danesa"]
["DOP","Peso dominicano","DOP-Peso dominicano"]
["DZD","Dinar argelino","DZD-Dinar argelino"]
["EGP","Libra egipcia","EGP-Libra egipcia"]
["ERN","Nakfa de Eritrea","ERN-Nakfa de Eritrea"]
["ETB","Birr etíope","ETB-Birr etíope"]
["EUR","Euro europeo","EUR-Euro europeo"]
["EUR","Euro europeo","EUR-Euro europeo"]
["EUR4","Euro europeo","EUR4-Euro europeo"]
["FJD","Dólar fiyiano","FJD-Dólar fiyiano"]
["FKP","Libra Malvinas","FKP-Libra Malvinas"]
["GBP","Libra esterlina","GBP-Libra esterlina"]
["GEL","Lari georgiano","GEL-Lari georgiano"]
["GHC","Cedi ghanés (ant.)","GHC-Cedi ghanés (ant.)"]
["GHS","Cedi ghanés","GHS-Cedi ghanés"]
["GIP","Libra gibraltareña","GIP-Libra gibraltareña"]
["GMD","Dalasi gambiano","GMD-Dalasi gambiano"]
["GNF","Franco guineano","GNF-Franco guineano"]
["GTQ","Quetzal guatemalteco","GTQ-Quetzal guatemalteco"]
["GYD","Dólar guyanés","GYD-Dólar guyanés"]
["HKD","Dólar Hong Kong",{"$f":"CONCATENATE(A68,\"-\",B68)","v":"HKD-Dólar Hong Kong"}]
["HNL","Lempira hondureño","HNL-Lempira hondureño"]
["HRK","Kuna croata","HRK-Kuna croata"]
["HTG","Gourde haitiano","HTG-Gourde haitiano"]
["HUF","Forint húngaro","HUF-Forint húngaro"]
["IDR","Rupia indonesia","IDR-Rupia indonesia"]
["ILS","Shekel israelí","ILS-Shekel israelí"]
["INR","Rupia hindú","INR-Rupia hindú"]
["IQD","Dinar iraquí","IQD-Dinar iraquí"]
["IRR","Rial iraní","IRR-Rial iraní"]
["ISK","Corona islandesa","ISK-Corona islandesa"]
["JMD","Dólar jamaicano","JMD-Dólar jamaicano"]
["JOD","Dinar jordano","JOD-Dinar jordano"]
["JPY","Yen japonés","JPY-Yen japonés"]
["KES","Chelín keniata","KES-Chelín keniata"]
["KGS","Som de Kirguizistán","KGS-Som de Kirguizistán"]
["KHR","Riel camboyano","KHR-Riel camboyano"]
["KMF","Franco Comores","KMF-Franco Comores"]
["KPW","Won coreano","KPW-Won coreano"]
["KRW","Won surcoreano","KRW-Won surcoreano"]
["KWD","Dinar kuwaití","KWD-Dinar kuwaití"]
["KYD","Dólar Caimanes","KYD-Dólar Caimanes"]
["KZT","Tenge Kazajstán","KZT-Tenge Kazajstán"]
["LAK","Kip laosiano","LAK-Kip laosiano"]
["LBP","Libra libanesa","LBP-Libra libanesa"]
["LKR","Rupia Sri Lanka","LKR-Rupia Sri Lanka"]
["LRD","Dólar liberiano","LRD-Dólar liberiano"]
["LSL","Loti Lesotho","LSL-Loti Lesotho"]
["LTL","Lita lituano","LTL-Lita lituano"]
["LVL","Lat letón","LVL-Lat letón"]
["LYD","Dinar libio","LYD-Dinar libio"]
["MAD","Dirham marroquí","MAD-Dirham marroquí"]
["MDL","Lei moldavo","MDL-Lei moldavo"]
["MGA","Ariary malgache","MGA-Ariary malgache"]
["MKD","Dinar macedionio","MKD-Dinar macedionio"]
["MMK","Kyat de la Unión de Myanmar (Birmania)","MMK-Kyat de la Unión de Myanmar (Birmania)"]
["MNT","Tugrik mongolés","MNT-Tugrik mongolés"]
["MOP","Pataca de Macao","MOP-Pataca de Macao"]
["MRO","Ouguiya mauritana","MRO-Ouguiya mauritana"]
["MRU","Ouguiya mauritana","MRU-Ouguiya mauritana"]
["MUR","Rupia Mauricio","MUR-Rupia Mauricio"]
["MVR","Rufiyaa maldiva","MVR-Rufiyaa maldiva"]
["MWK","Kwacha malawiano","MWK-Kwacha malawiano"]
["MXN","Pesos mexicanos","MXN-Pesos mexicanos"]
["MYR","Ringgit malayo","MYR-Ringgit malayo"]
["MZM","Metical mozambiqueño (antiguo)","MZM-Metical mozambiqueño (antiguo)"]
["MZN","Metical mozambiqueño","MZN-Metical mozambiqueño"]
["NAD","Dolar namíbio","NAD-Dolar namíbio"]
["NGN","Naira nigeriana","NGN-Naira nigeriana"]
["NIO","Cordoba Oro nicaragüense","NIO-Cordoba Oro nicaragüense"]
["NOK","Corona noruega","NOK-Corona noruega"]
["NPR","Rupia nepalesa","NPR-Rupia nepalesa"]
["NZD","Dólar neozelandés","NZD-Dólar neozelandés"]
["NZD5","Dólar neozelandés","NZD5-Dólar neozelandés"]
["OMR","Rial omaní","OMR-Rial omaní"]
["PAB","Balboa panameño","PAB-Balboa panameño"]
["PEN","Nuevo Sol peruano","PEN-Nuevo Sol peruano"]
["PGK","Kina papú","PGK-Kina papú"]
["PHP","Peso filipino","PHP-Peso filipino"]
["PKR","Rupia pakistaní","PKR-Rupia pakistaní"]
["PLN","Zloty polaco (nuevo)","PLN-Zloty polaco (nuevo)"]
["PYG","Guaraní paraguayo","PYG-Guaraní paraguayo"]
["QAR","Riyal katarí","QAR-Riyal katarí"]
["RMB","RenMinBi Yuan chino","RMB-RenMinBi Yuan chino"]
["ROL","Leu rumano (antiguo)",{"$f":"CONCATENATE(A132,\"-\",B132)","v":"ROL-Leu rumano (antiguo)"}]
["RON","Leu rumano","RON-Leu rumano"]
["RSD","Dinar serbio","RSD-Dinar serbio"]
["RUB","Rublo ruso","RUB-Rublo ruso"]
["RWF","Franco ruandés","RWF-Franco ruandés"]
["SAR","Riyal saudita","SAR-Riyal saudita"]
["SBD","Dólar Salomón","SBD-Dólar Salomón"]
["SCR","Rupia Seychelles","SCR-Rupia Seychelles"]
["SDG","Libra sudanesa","SDG-Libra sudanesa"]
["SEK","Corona sueca","SEK-Corona sueca"]
["SGD","Dólar Singapur","SGD-Dólar Singapur"]
["SHP","Libra de Sta. Elena","SHP-Libra de Sta. Elena"]
["SLL","Leone de Sierra Leona","SLL-Leone de Sierra Leona"]
["SOS","Chelín somalí","SOS-Chelín somalí"]
["SRD","Dólar surinamita","SRD-Dólar surinamita"]
["SRG","Florín surinamita (antiguo)","SRG-Florín surinamita (antiguo)"]
["SSP","Libra sursudanesa","SSP-Libra sursudanesa"]
["STD","Dobra Santo Tomé","STD-Dobra Santo Tomé"]
["STN",null,"STN-"]
["SVC","Colón salvadoreño","SVC-Colón salvadoreño"]
["SYP","Libra siria","SYP-Libra siria"]
["SZL","Lilangeni Swazilandia","SZL-Lilangeni Swazilandia"]
["THB","Baht tailandés","THB-Baht tailandés"]
["TJR","Rublo tadjik (ant.)","TJR-Rublo tadjik (ant.)"]
["TJS","Somoni de Tayikistán","TJS-Somoni de Tayikistán"]
["TMM","Manat turcomano (antiguo)","TMM-Manat turcomano (antiguo)"]
["TMT","Manat turcomano","TMT-Manat turcomano"]
["TND","Dinar tunecino","TND-Dinar tunecino"]
["TOP","Pa'anga tongano","TOP-Pa'anga tongano"]
["TRL","Lira turca (antigua)","TRL-Lira turca (antigua)"]
["TRY","Lira turca","TRY-Lira turca"]
["TTD","Dólar Trinidad y Tobago","TTD-Dólar Trinidad y Tobago"]
["TWD","Dólar taiwanés nuevo","TWD-Dólar taiwanés nuevo"]
["TZS","Chelín tanzanés","TZS-Chelín tanzanés"]
["UAH","Griwna ucraniano","UAH-Griwna ucraniano"]
["UF","Unidad de Fomento","UF-Unidad de Fomento"]
["UGX","Chelín ugandés","UGX-Chelín ugandés"]
["USD","Dólar americano","USD-Dólar americano"]
["USDU","Dólar universitario","USDU-Dólar universitario"]
["UTM","Unidad Tributaria Mensual","UTM-Unidad Tributaria Mensual"]
["UYU","Peso uruguayo","UYU-Peso uruguayo"]
["UZS","Sum de Uzbequistán","UZS-Sum de Uzbequistán"]
["VEB","Bolívar venezolano (ant.)","VEB-Bolívar venezolano (ant.)"]
["VEF","Bolívar venezolano","VEF-Bolívar venezolano"]
["VES","Bolívar venezolano","VES-Bolívar venezolano"]
["VND","Dong vietnamita","VND-Dong vietnamita"]
["VUV","Vatu Vanuatu","VUV-Vatu Vanuatu"]
["WST","Tala samoano","WST-Tala samoano"]
["XAF","Franco CFA gabonés BEAC","XAF-Franco CFA gabonés BEAC"]
["XCD","Dólar caribeño oriental","XCD-Dólar caribeño oriental"]
["XEU","Unidad Monetaria Europea (ECU)","XEU-Unidad Monetaria Europea (ECU)"]
["XOF","Franco CFA benimés BCEAO","XOF-Franco CFA benimés BCEAO"]
["XPF","Franco CFP","XPF-Franco CFP"]
["YER","Rial yemení","YER-Rial yemení"]
["YUM","Dinar nuevo yugoslavo (antiguo)","YUM-Dinar nuevo yugoslavo (antiguo)"]
["ZAR","Rand sudafricano","ZAR-Rand sudafricano"]
["ZMW","Kwacha zambiano (nvo.)","ZMW-Kwacha zambiano (nvo.)"]
["ZRM",null,"ZRM-"]
["ZRN","Zaire (ant.)","ZRN-Zaire (ant.)"]
["ZRO","Zaire (ant.)","ZRO-Zaire (ant.)"]
["ZWL","Dólar Zimbabuense (nuevo)","ZWL-Dólar Zimbabuense (nuevo)"]